bitfinex-derivatives/quotes_SOLF0:USTF0_20250716
["timestamp","ask_amount","ask_price","bid_price","bid_amount"]
[1752688776977,12.91455022,173.54,173.51,3.34]
[1752688777280,3.33,173.53,173.52,7.51210722]
[1752688777480,12.91455022,173.57,173.53,3.34]
[1752688777683,3.33,173.58,173.56,7.51210722]
[1752688777882,3.33,173.58,173.57,3.34]
[1752688778082,12.91455022,173.6,173.57,3.34]
[1752688778083,3.33,173.6,173.57,3.34]
[1752688778383,16.24455022,173.6,173.56,7.51210722]
[1752688778576,5.7578,173.59,173.56,7.51210722]
[1752688778771,3.33,173.58,173.56,7.51210722]
[1752688779184,3.33,173.58,173.57,3.34]
[1752688779385,3.33,173.63,173.57,3.34]
[1752688779682,3.33,173.62,173.6,7.51210722]
[1752688779885,510.77455022,173.66,173.6,7.51210722]
[1752688779886,3.33,173.61,173.6,3.34]
[1752688780189,3.33,173.61,173.6,7.51210722]
[1752688780479,3.33,173.65,173.61,3.34]
[1752688780785,3.33,173.65,173.61,4.17210722]
[1752688780982,497.86,173.66,173.61,4.17210722]
[1752688781179,3.33,173.62,173.61,4.17210722]
[1752688781684,3.33,173.62,173.61,7.51210722]
[1752688782375,3.33,173.62,173.61,4.17210722]
[1752688782574,9.0866,173.62,173.61,4.17210722]
[1752688783389,3.33,173.62,173.59,7.51210722]
[1752688783888,5.7569,173.61,173.59,7.51210722]
[1752688784090,3.33,173.6,173.59,7.51210722]
[1752688785084,3.33,173.6,173.56,5.7585]
[1752688785290,3.33,173.59,173.58,4.17210722]
[1752688785687,3.33,173.59,173.56,4.17210722]
[1752688785889,3.33,173.57,173.56,7.51210722]
[1752688786085,208.753,173.65,173.57,3.34]
[1752688786290,3.33,173.64,173.59,7.51210722]
[1752688786790,700.82,173.66,173.59,7.51210722]
[1752688786791,3.4,173.6,173.59,7.51210722]
[1752688786989,3.4,173.59,173.58,4.17210722]
[1752688787681,9.1576,173.59,173.58,4.17210722]
[1752688787885,3.4,173.59,173.56,4.17210722]
[1752688788291,3.4,173.59,173.54,7.31210722]
[1752688788495,3.4,173.56,173.55,3.14]
[1752688789087,3.4,173.56,173.55,7.31210722]
[1752688789392,5.753,173.62,173.55,7.31210722]
[1752688789393,3.4,173.57,173.55,7.31210722]
[1752688789690,3.4,173.57,173.56,3.14]
[1752688790296,9.1576,173.59,173.56,3.14]
[1752688790587,3.4,173.58,173.57,4.17210722]
[1752688790788,3.4,173.58,173.57,7.31210722]
[1752688792188,5.753,173.63,173.57,4.17210722]
[1752688792388,3.4,173.59,173.58,3.14]
[1752688793388,9.1576,173.59,173.57,4.17210722]
[1752688793589,3.4,173.58,173.57,4.17210722]
[1752688793893,3.4,173.58,173.57,7.31210722]
[1752688794294,5.7576,173.59,173.58,3.14]
[1752688794486,9.1576,173.59,173.58,3.14]
[1752688794687,9.1576,173.59,173.57,4.17210722]
[1752688794688,3.4,173.58,173.57,7.31210722]
[1752688795391,5.7579,173.58,173.57,4.17210722]
[1752688795698,9.92510722,173.7,173.58,3.14]
[1752688795994,5.753,173.68,173.61,4.17210722]
[1752688796198,206.59210722,173.7,173.61,4.17210722]
[1752688796391,3.4,173.69,173.61,4.17210722]
[1752688796689,3.4,173.63,173.61,7.31210722]
[1752688796900,5.753,173.66,173.61,7.31210722]
[1752688796901,3.4,173.62,173.61,7.31210722]
[1752688797092,3.4,173.63,173.62,3.14]
[1752688797292,3.4,173.63,173.61,4.17210722]
[1752688797694,9.1564,173.63,173.61,4.17210722]
[1752688797895,3.4,173.62,173.61,4.17210722]
[1752688798196,5.7562,173.64,173.61,7.31210722]
[1752688798399,3.4,173.66,173.63,7.31210722]
[1752688798697,3.4,173.66,173.63,4.17210722]
[1752688798899,5.753,173.7,173.63,4.17210722]
[1752688799593,3.4,173.64,173.63,7.31210722]
[1752688800296,9.1558,173.65,173.64,3.14]
[1752688800793,9.1558,173.65,173.63,4.17210722]
[1752688800794,5.753,173.7,173.63,4.17210722]
[1752688801000,5.753,173.7,173.61,4.17210722]
[1752688801001,3.4,173.77,173.69,3.14]
[1752688801202,3.4,173.77,173.69,4.17210722]
[1752688801398,3.4,173.77,173.71,4.17210722]
[1752688801694,3.4,173.77,173.61,4.17210722]
[1752688801695,3.4,173.76,173.73,4.17210722]
[1752688801996,9.153,173.76,173.62,441.04]
[1752688802196,3.4,173.75,173.72,4.17210722]
[1752688802394,3.4,173.75,173.69,4.17210722]
[1752688802700,9.1539,173.7,173.69,4.17210722]
[1752688802896,9.153,173.76,173.68,4.17210722]
[1752688803102,5.753,173.74,173.68,4.17210722]
[1752688803292,3.4,173.73,173.68,3.14]
[1752688803493,3.4,173.73,173.68,7.31210722]
[1752688803893,9.154,173.7,173.68,7.31210722]
[1752688804392,3.4,173.74,173.69,3.14]
[1752688804598,3.4,173.74,173.73,3.14]
[1752688804996,3.4,173.76,173.72,4.17210722]
[1752688805198,3.4,173.76,173.75,4.17210722]
[1752688805395,3.4,173.76,173.74,3.14]
[1752688805597,3.4,173.75,173.74,3.14]
[1752688805998,3.4,173.75,173.74,7.31210722]
[1752688806201,5.752,173.76,173.74,7.31210722]
[1752688806500,3.4,173.78,173.76,3.14]
[1752688806696,5.7513,173.78,173.76,7.31210722]
[1752688807005,9.1513,173.78,173.77,3.14]
[1752688807501,9.151,173.79,173.77,3.14]
[1752688807707,3.4,173.79,173.78,9.31722627]
[1752688807892,5.753,173.84,173.76,6.17722627]
[1752688807893,9.1515,173.78,173.76,6.17722627]
[1752688808099,3.4,173.82,173.77,3.14]
[1752688808404,3.4,173.85,173.77,3.14]
[1752688808595,3.4,173.79,173.77,3.14]
[1752688808790,3.4,173.79,173.78,3.14]
[1752688808995,9.1509,173.79,173.78,3.14]
[1752688809701,5.7509,173.79,173.78,9.31722627]
[1752688810597,3.4,173.84,173.79,3.14]
[1752688810799,3.4,173.84,173.7,6.17722627]
[1752688810800,3.4,173.84,173.8,9.31722627]
[1752688811000,3.4,173.84,173.8,6.17722627]
[1752688811392,5.7503,173.81,173.8,9.31722627]
[1752688811697,9.1503,173.81,173.8,9.31722627]
[1752688811890,9.1503,173.81,173.8,6.17722627]
[1752688812094,3.4,173.82,173.77,6.17722627]
[1752688812300,3.4,173.82,173.77,9.31722627]
[1752688812602,207.79722627,173.87,173.77,3.14]
[1752688812603,9.1512,173.79,173.77,3.14]
[1752688812803,9.1512,173.79,173.77,9.31722627]
[1752688813106,5.753,173.84,173.72,3.14]
[1752688813400,3.4,173.8,173.72,3.14]
[1752688813994,5.753,173.77,173.72,3.14]
[1752688814190,5.7528,173.74,173.72,3.14]
[1752688814394,9.1528,173.74,173.72,3.14]
[1752688814596,9.1528,173.74,173.73,3.14]
[1752688814798,9.1524,173.75,173.73,3.14]
[1752688815001,9.1524,173.75,173.74,3.14]
[1752688815402,5.752,173.76,173.73,6.17722627]
[1752688815598,3.4,173.83,173.76,3.14]
[1752688815798,3.4,173.87,173.8,6.17722627]
[1752688816000,3.4,173.87,173.82,6.17722627]
[1752688816202,3.4,173.87,173.7,742.21722627]
[1752688816203,3.4,173.86,173.84,9.31722627]
[1752688816396,201.1,173.93,173.85,3.14]
[1752688816598,3.4,173.87,173.85,3.14]
[1752688817097,3.4,173.87,173.86,3.19]
[1752688817301,11.49,173.97,173.86,6.17722627]
[1752688817603,3.18,173.9,173.88,9.36722627]
[1752688818304,3.18,173.9,173.89,3.19]
[1752688818305,5.7474,173.9,173.89,3.19]
[1752688818498,3.18,173.9,173.88,6.17722627]
[1752688818696,3.18,173.89,173.88,6.17722627]
[1752688819205,8.9276,173.89,173.88,6.17722627]
[1752688820396,3.18,173.97,173.89,3.19]
[1752688820701,3.18,173.97,173.93,6.17722627]
[1752688821204,6.17722627,174.0,173.91,6.17722627]
[1752688821400,5.753,173.98,173.91,6.17722627]
[1752688821607,3.18,173.95,173.91,9.36722627]
[1752688821805,3.18,173.93,173.91,9.36722627]
[1752688822105,5.7466,173.92,173.91,3.19]
[1752688822500,8.9264,173.93,173.9,6.17722627]
[1752688822698,5.7464,173.93,173.92,9.36722627]
[1752688822900,17.66392627,174.02,173.92,9.36722627]
[1752688822901,3.18,173.98,173.92,9.36722627]
[1752688823199,5.7463,173.94,173.92,9.36722627]
[1752688823399,5.7463,173.94,173.93,3.19]
[1752688823700,8.9263,173.94,173.93,3.19]
[1752688823899,5.7463,173.94,173.93,3.19]
[1752688824793,3.18,173.95,173.93,3.19]
[1752688824998,5.753,173.98,173.84,3.19]
[1752688825301,5.753,173.98,173.81,496.88]
[1752688825302,3.18,173.94,173.93,6.17722627]
[1752688825499,3.18,173.94,173.91,9.36722627]
[1752688825700,5.7466,173.92,173.91,3.19]
[1752688825894,3.18,173.99,173.91,9.36722627]
[1752688826495,3.18,174.02,173.92,3.19]
[1752688826700,3.18,174.02,173.95,9.36722627]
[1752688827099,3.18,174.02,173.93,9.36722627]
[1752688827299,3.18,173.99,173.91,9.36722627]
[1752688828007,5.7456,173.96,173.93,6.17722627]
[1752688828205,5.7456,173.96,173.95,3.19]
[1752688828707,5.7451,173.97,173.95,3.19]
[1752688828920,8.9251,173.97,173.95,3.19]
[1752688829096,8.9251,173.97,173.96,3.19]
[1752688829302,508.0812,174.11,173.96,3.19]
[1752688829505,3.18,174.1,174.0,9.36722627]
[1752688829800,5.7436,174.02,174.0,9.36722627]
[1752688830108,3.18,174.03,174.01,3.19]
[1752688830308,5.7437,174.01,174.0,6.17722627]
[1752688830608,3.18,174.02,174.0,9.36722627]
[1752688831009,8.9236,174.02,174.0,9.36722627]
[1752688831510,5.7437,174.01,174.0,9.36722627]
[1752688831806,3.18,174.05,173.96,9.36722627]
[1752688832008,5.7447,173.98,173.9,6.17722627]
[1752688832312,3.18,174.05,173.96,3.19]
[1752688832500,5.7463,173.93,173.92,6.17722627]
[1752688832697,3.18,173.96,173.85,9.36722627]
[1752688832898,3.18,173.92,173.85,3.19]
[1752688833102,3.18,173.92,173.73,496.5]
[1752688833304,3.18,173.92,173.82,3.19]
[1752688833605,5.7491,173.85,173.82,3.19]
[1752688833812,3.18,173.9,173.82,3.19]
[1752688834011,3.18,173.9,173.83,9.36722627]
[1752688834709,3.18,173.9,173.83,3.19]
[1752688834908,5.749,173.85,173.83,3.19]
[1752688835104,6.17722627,173.91,173.83,3.19]
[1752688835307,3.18,173.9,173.8,3.19]
[1752688835607,3.18,173.88,173.8,3.19]
[1752688836307,3.18,173.88,173.8,9.36722627]
[1752688836706,3.18,173.88,173.8,3.19]
[1752688837211,5.7509,173.79,173.78,3.19]
[1752688837604,3.18,173.81,173.79,3.19]
[1752688837805,6.17722627,173.88,173.73,496.5]
[1752688838002,3.18,173.87,173.77,9.36722627]
[1752688838205,6.17722627,173.86,173.77,3.19]
[1752688838410,5.7513,173.78,173.77,3.19]
[1752688839112,3.18,173.8,173.78,3.19]
[1752688839412,5.7509,173.79,173.78,3.19]
[1752688839609,3.18,173.84,173.74,3.19]
[1752688839816,3.18,173.84,173.75,9.36722627]
[1752688840119,5.7519,173.76,173.75,9.36722627]
[1752688840508,3.18,173.79,173.75,9.36722627]
[1752688840709,5.7518,173.77,173.76,3.19]
[1752688843308,3.18,173.76,173.7,3.19]
[1752688843513,6.17722627,173.79,173.72,3.19]
[1752688843713,5.7527,173.74,173.72,3.19]
[1752688843917,5.7527,173.74,173.69,6.17722627]
[1752688843918,5.7527,173.74,173.73,3.19]
[1752688844805,3.18,173.79,173.74,3.19]
[1752688845110,3.18,173.79,173.73,6.17722627]
[1752688845111,3.18,173.81,173.78,3.19]
[1752688845305,6.17722627,173.84,173.77,3.19]
[1752688845516,3.18,173.83,173.75,3.19]
[1752688845712,3.18,173.81,173.75,3.19]
[1752688845913,3.18,173.8,173.75,6.17722627]
[1752688846118,3.18,173.84,173.75,3.19]
[1752688846321,5.7514,173.78,173.74,6.17722627]
[1752688846613,3.18,173.85,173.77,3.19]
[1752688846815,5.7502,173.82,173.77,3.19]
[1752688847012,9.0302,173.82,173.78,6.17722627]
[1752688847316,3.28,173.82,173.8,3.25]
[1752688847514,3.28,173.84,173.79,3.25]
[1752688847718,3.28,173.83,173.8,3.25]
[1752688848113,9.03,173.82,173.8,3.25]
[1752688848307,9.03,173.82,173.8,9.42722627]
[1752688848519,3.28,173.82,173.81,3.25]
[1752688848920,6.17722627,173.88,173.79,3.25]
[1752688849121,3.28,173.81,173.79,3.25]
[1752688850117,3.28,173.81,173.8,3.25]
[1752688850921,3.28,173.8,173.79,3.25]
[1752688851216,3.28,173.8,173.78,9.42722627]
[1752688851722,3.28,173.87,173.78,9.42722627]
[1752688851912,17.2471,173.91,173.78,9.42722627]
[1752688851913,6.17722627,173.86,173.78,9.42722627]
[1752688852119,3.28,173.85,173.78,9.42722627]
[1752688852315,3.28,173.78,173.76,3.25]
[1752688852717,9.0316,173.77,173.75,6.17722627]
[1752688853015,9.0316,173.77,173.75,9.42722627]
[1752688853621,9.0319,173.76,173.75,6.17722627]
[1752688853820,3.28,173.81,173.74,0.03872635]
[1752688854029,3.28,173.77,173.74,0.03872635]
[1752688854325,9.0322,173.75,173.73,3.25]
[1752688854520,3.28,173.75,173.74,0.04196496]
[1752688854821,9.0323,173.75,173.74,0.04196496]
[1752688855626,0.03680389,173.78,173.69,6.17722627]
[1752688855920,3.28,173.76,173.7,6.17722627]
[1752688856117,3.28,173.75,173.72,9.42722627]
[1752688856314,3.28,173.75,173.73,3.25]
[1752688857022,9.0326,173.74,173.73,3.25]
[1752688857224,0.03645333,173.76,173.73,3.25]
[1752688857423,0.03645333,173.76,173.75,9.42722627]
[1752688857720,3.28,173.75,173.73,9.42722627]
[1752688857923,0.03645333,173.76,173.74,3.25]
[1752688858229,6.17722627,173.85,173.76,3.25]
[1752688858419,0.03904258,173.77,173.76,3.25]
[1752688858724,5.7512,173.79,173.76,3.25]
[1752688858931,3.28,173.78,173.76,3.25]
[1752688859125,3.32027345,173.78,173.76,3.25]
[1752688859623,3.32027345,173.78,173.77,6.17722627]
[1752688860427,3.32027345,173.78,173.75,6.17722627]
[1752688860622,3.28,173.77,173.75,9.42722627]
[1752688860820,3.28,173.77,173.75,15.17942627]
[1752688861023,0.04027345,173.78,173.76,3.25]
[1752688861230,3.32027345,173.78,173.76,3.25]
[1752688861721,3.32027345,173.78,173.76,9.0019]
[1752688861917,3.28,173.77,173.76,3.25]
[1752688862116,3.28,173.74,173.73,6.17722627]
[1752688862420,0.04027345,173.78,173.71,3.25]
[1752688862421,3.28,173.77,173.71,6.17722627]
[1752688862816,0.04352275,173.75,173.71,6.17722627]
[1752688863016,3.28,173.74,173.73,6.17722627]
[1752688863324,5.7519,173.77,173.73,9.42722627]
[1752688863524,0.04043973,173.75,173.73,9.42722627]
[1752688863725,3.32043973,173.75,173.73,9.42722627]
[1752688863924,3.28,173.73,173.72,6.17722627]
[1752688864125,12.91455022,173.85,173.72,9.42722627]
[1752688864426,3.28,173.84,173.76,6.17722627]
[1752688864628,5.79324819,173.8,173.76,11.92902627]
[1752688864827,3.28,173.78,173.76,15.17902627]
[1752688865327,3.28,173.78,173.76,9.42722627]
[1752688866126,3.28,173.78,173.76,15.17912627]
[1752688866629,3.28,173.78,173.76,9.42722627]
[1752688868731,3.28,173.78,173.76,15.17892627]
[1752688868930,0.04244819,173.8,173.76,9.42722627]
[1752688869225,0.04244819,173.8,173.78,6.17722627]
[1752688869434,0.04244819,173.8,173.78,9.42722627]
[1752688869632,0.04244819,173.8,173.78,3.25]
[1752688869831,0.04244819,173.8,173.76,11.92912627]
[1752688870135,0.04244819,173.8,173.77,3.25]
[1752688870327,0.04244819,173.8,173.78,6.17722627]
[1752688871335,3.28,173.79,173.78,6.17722627]
[1752688871534,3.28,173.79,173.71,3.25]
[1752688871831,3.28,173.76,173.75,6.17722627]
[1752688872035,3.28,173.76,173.75,9.42722627]
[1752688872334,5.753,173.84,173.75,9.42722627]
[1752688872335,3.31891974,173.77,173.75,9.42722627]
[1752688872729,3.28,173.77,173.75,9.002]
[1752688872929,3.28,173.77,173.76,6.17722627]
[1752688873632,3.28,173.76,173.75,6.17722627]
[1752688873828,3.28,173.77,173.74,6.17722627]
[1752688874233,5.753,173.84,173.75,3.25]
[1752688874434,3.28,173.76,173.75,3.25]
[1752688874630,5.79155531,173.77,173.74,9.42722627]
[1752688874937,3.28,173.75,173.74,6.17722627]
[1752688875329,0.036862,173.76,173.74,15.17982627]
[1752688875527,3.316862,173.76,173.75,3.25]
[1752688875731,3.28,173.79,173.75,9.002]
[1752688875927,3.28,173.78,173.77,6.17722627]
[1752688877635,3.28,173.78,173.7,6.17722627]
[1752688877636,3.28,173.78,173.71,3.21]
[1752688877832,3.28,173.78,173.75,6.17722627]
[1752688878141,5.7516,173.77,173.75,6.17722627]
[1752688878438,3.14,173.76,173.75,6.17722627]
[1752688879142,3.14,173.76,173.71,6.17722627]
[1752688879737,3.14,173.74,173.71,6.17722627]
[1752688879933,16.05455022,173.74,173.67,6.17722627]
[1752688880131,3.14,173.72,173.67,6.17722627]
[1752688880434,3.14,173.71,173.65,6.17722627]
[1752688880633,3.14,173.71,173.63,6.17722627]
[1752688880634,3.14,173.7,173.63,6.17722627]
[1752688880834,3.14,173.69,173.63,6.17722627]
[1752688881130,3.14,173.67,173.63,9.38722627]
[1752688881539,3.14,173.67,173.63,6.17722627]
[1752688881941,3.14,173.66,173.63,6.17722627]
[1752688882142,3.14,173.66,173.61,9.38722627]
[1752688882347,3.14,173.66,173.6,9.38722627]
[1752688882642,3.14,173.66,173.6,15.14422627]
[1752688882836,3.14,173.66,173.62,6.17722627]
[1752688883035,8.8951,173.67,173.62,15.14352627]
[1752688883237,3.14,173.66,173.62,15.14352627]
[1752688883435,3.14,173.66,173.62,9.38722627]
[1752688884236,3.14,173.66,173.62,8.9663]
[1752688884438,3.14,173.66,173.62,15.14352627]
[1752688884633,3.14,173.66,173.62,9.38722627]
[1752688884942,3.14,173.66,173.62,6.17722627]
[1752688885338,3.14,173.67,173.62,6.17722627]
[1752688885533,3.14,173.67,173.6,6.17722627]
[1752688886040,5.7558,173.65,173.6,11.93422627]
[1752688886241,3.14,173.63,173.6,15.14422627]
[1752688886544,3.14,173.63,173.61,3.21]
[1752688886738,3.14,173.63,173.6,6.17722627]
[1752688886939,3.14,173.63,173.6,9.38722627]
[1752688887139,3.14,173.64,173.6,9.38722627]
[1752688887335,5.7563,173.63,173.6,3.21]
[1752688887541,0.04153644,173.65,173.58,3.21]
[1752688887542,3.14,173.62,173.58,3.21]
[1752688888044,3.14,173.62,173.58,8.9679]
[1752688888951,3.14,173.62,173.58,3.21]
[1752688889141,3.14,173.62,173.57,6.17722627]
[1752688889338,5.7574,173.6,173.56,3.21]
[1752688889644,3.14,173.58,173.56,8.9685]
[1752688889837,3.14,173.58,173.56,15.14572627]
[1752688890144,3.14,173.57,173.56,9.38722627]
[1752688890339,3.14,173.59,173.57,3.21]
[1752688890745,3.14,173.58,173.57,3.21]
[1752688891146,3.14,173.58,173.57,8.968]
[1752688891347,3.17952839,173.6,173.56,6.17722627]
[1752688891643,5.753,173.69,173.59,8.9675]
[1752688891644,3.14,173.65,173.59,8.9675]
[1752688891842,3.14,173.65,173.64,9.38722627]
[1752688892334,3.14,173.65,173.64,6.17722627]
[1752688892538,3.14,173.65,173.6,9.38722627]
[1752688892737,3.14,173.65,173.6,6.17722627]
[1752688892932,3.14,173.65,173.6,9.38722627]
[1752688893339,3.14,173.65,173.56,3.21]
[1752688893547,3.14,173.65,173.56,9.38722627]
[1752688893942,3.14,173.61,173.57,8.9681]
[1752688894148,6.17722627,173.66,173.57,8.9681]
[1752688894345,3.14,173.58,173.56,9.38722627]
[1752688894549,3.14,173.58,173.56,8.9684]
[1752688895946,12.91455022,173.69,173.57,9.38722627]
[1752688896153,27.41801945,173.74,173.61,6.17722627]
[1752688896154,3.14,173.68,173.61,6.17722627]
[1752688896345,3.14,173.68,173.61,9.38722627]
[1752688896951,5.7568,173.62,173.58,5.7578]
[1752688897155,3.14,173.67,173.57,3.21]
[1752688897457,5.7569,173.62,173.57,15.14532627]
[1752688897644,3.14,173.67,173.57,15.14532627]
[1752688897645,6.17722627,173.67,173.57,15.14532627]
[1752688897849,3.14,173.6,173.57,15.14532627]
[1752688898046,3.14,173.59,173.57,15.14532627]
[1752688898249,12.91455022,173.71,173.57,6.17722627]
[1752688898450,3.14,173.7,173.61,3.21]
[1752688898851,6.17722627,173.71,173.61,3.21]
[1752688899048,12.91455022,173.73,173.51,435.98]
[1752688899049,3.14,173.68,173.58,9.38722627]
[1752688899453,3.14,173.68,173.59,5.7575]
[1752688899855,5.7554,173.66,173.61,8.9667]
[1752688900052,3.14,173.65,173.62,3.21]
[1752688900359,3.14,173.64,173.62,9.38722627]
[1752688900554,3.14,173.64,173.63,3.21]
[1752688901151,6.17722627,173.72,173.63,3.21]
[1752688901446,3.14,173.65,173.63,3.21]
[1752688902258,3.14,173.63,173.62,9.38722627]
[1752688902452,3.14,173.63,173.61,3.21]
[1752688903461,3.14,173.62,173.59,8.9675]
[1752688903657,3.14,173.61,173.6,6.17722627]
[1752688904154,3.14,173.71,173.61,3.21]
[1752688904359,3.14,173.71,173.66,6.17722627]
[1752688904559,3.14,173.71,173.68,6.17722627]
[1752688904964,3.14,173.69,173.68,6.17722627]
[1752688905856,3.14,173.69,173.66,6.17722627]
[1752688906058,24.84477649,173.77,173.66,6.17722627]
[1752688906261,24.84477649,173.77,173.66,9.38722627]
[1752688906456,3.14,173.68,173.66,9.38722627]
[1752688906651,24.84477649,173.77,173.66,9.38722627]
[1752688906856,3.1,173.67,173.66,6.17722627]
[1752688907562,3.1,173.75,173.68,3.18]
[1752688907757,3.1,173.75,173.7,6.17722627]
[1752688907957,17.67932627,173.79,173.7,6.17722627]
[1752688907958,8.8536,173.71,173.7,6.17722627]
[1752688908152,3.1,173.71,173.68,9.35722627]
[1752688908460,5.7536,173.71,173.68,6.17722627]
[1752688908662,3.1,173.7,173.68,9.35722627]
[1752688908854,5.753,173.78,173.69,3.18]
[1752688909057,3.1,173.71,173.7,6.17722627]
[1752688909362,3.1,173.71,173.69,3.18]
[1752688909657,3.1,173.7,173.69,3.18]
[1752688910160,5.753,173.76,173.6,435.44]
[1752688910353,3.1,173.75,173.67,6.17722627]
[1752688910561,5.7543,173.69,173.66,3.18]
[1752688910863,3.1,173.68,173.67,6.17722627]
[1752688911056,3.1,173.67,173.66,3.18]
[1752688912062,24.84477649,173.76,173.64,8.9358]
[1752688912263,3.1,173.66,173.65,3.18]
[1752688912463,8.8547,173.68,173.66,3.18]
[1752688912662,8.8547,173.68,173.67,3.18]
[1752688912864,8.8547,173.68,173.66,6.17722627]
[1752688913061,5.7547,173.68,173.66,9.35722627]
[1752688913262,3.1,173.67,173.66,9.35722627]
[1752688913465,3.1,173.68,173.66,9.35722627]
[1752688913857,3.1,173.67,173.66,3.18]
[1752688915059,3.1,173.67,173.66,9.35722627]
[1752688915463,3.1,173.74,173.67,3.18]
[1752688915664,3.1,173.74,173.7,6.17722627]
[1752688915864,8.8536,173.71,173.7,6.17722627]
[1752688916666,3.1,173.7,173.68,3.18]
[1752688916869,3.1,173.7,173.69,6.17722627]
[1752688917364,3.1,173.7,173.69,9.35722627]
[1752688917962,3.1,173.74,173.7,3.18]
[1752688918168,3.1,173.75,173.73,9.35722627]
[1752688918372,3.1,173.74,173.73,9.35722627]
[1752688920366,5.752,173.76,173.73,15.11012627]
[1752688920562,3.1,173.77,173.75,9.35722627]
[1752688920758,6.17722627,173.79,173.71,3.18]
[1752688920966,5.7532,173.73,173.69,9.35722627]
[1752688921268,6.17722627,173.79,173.69,9.35722627]
[1752688921269,3.1,173.72,173.71,3.18]
[1752688921467,3.1,173.78,173.71,9.35722627]
[1752688921673,3.1,173.78,173.71,6.17722627]
[1752688921965,12.91455022,173.76,173.67,9.35722627]
[1752688922171,3.1,173.68,173.67,3.18]
[1752688922664,3.1,173.7,173.66,6.17722627]
[1752688922864,3.1,173.7,173.68,3.18]
[1752688923270,5.7537,173.71,173.68,3.18]
[1752688923470,3.1,173.69,173.68,3.18]
[1752688923870,3.1,173.68,173.66,9.35722627]
[1752688924370,3.1,173.66,173.64,9.35722627]
[1752688924574,11.93122627,173.71,173.62,3.18]
[1752688924871,3.1,173.68,173.62,3.18]
[1752688925870,5.7555,173.66,173.62,3.18]
[1752688926171,3.1,173.64,173.62,3.18]
[1752688926476,3.1,173.66,173.64,3.18]
[1752688926974,8.8553,173.66,173.64,3.18]
[1752688927173,3.1,173.65,173.64,3.18]
[1752688927567,8.8555,173.65,173.64,3.18]
[1752688927767,3.1,173.64,173.62,9.35722627]
[1752688928067,3.1,173.64,173.63,3.22295894]
[1752688928262,3.1,173.65,173.63,3.22295894]
[1752688928661,8.8556,173.65,173.63,3.22295894]
[1752688929173,3.1,173.65,173.63,8.97915894]
[1752688929366,3.1,173.65,173.63,3.22295894]
[1752688929566,3.1,173.65,173.63,0.04295894]
[1752688929767,5.7559,173.64,173.63,0.04295894]
[1752688929967,8.8559,173.64,173.63,0.04295894]
[1752688930266,8.8559,173.64,173.63,0.00901934]
[1752688932273,3.1,173.64,173.63,0.00901934]
[1752688932471,3.1,173.64,173.63,3.18901934]
[1752688932777,3.1,173.64,173.63,0.00901934]
[1752688933274,8.8559,173.64,173.63,0.00901934]
[1752688933470,5.7559,173.64,173.63,0.00901934]
[1752688933985,12.95311125,173.66,173.63,0.00901934]
[1752688934374,3.1,173.65,173.63,0.00901934]
[1752688934768,5.7559,173.64,173.63,0.00901934]
[1752688934973,12.95311125,173.66,173.63,0.00901934]
[1752688935172,0.03856103,173.66,173.63,0.00901934]